Workbook

Sheet Сводный
C3: Сводный расчет расхода тепловой энергии на отопление объекта
C5: Наименование объекта:
C6: Жилая застройка в п. Новотроицкое
C9: Расходы тепловой энергии на отопление и вентиляцию объектов
C10: Наименование объекта | I10: Расход на ед. | J10: Кол-во | K10: Сумма
C11: =Объект1!C27 -> Многоквартирный 5ти этажный жилой дом на 20 квартир | I11: =Объект1!J42 -> 0.07389905417 | J11: 31 | K11: =I11*J11 -> 2.290870679
C12: =Объект2!C27 -> Многоквартирный 9ти этажный жилой дом на 54 квартиры | I12: =Объект2!J42 -> 0.1446361909 | J12: 7 | K12: =I12*J12 -> 1.012453336
C13: =Объект3!C27 -> Автосервис на 4 поста | I13: =Объект3!J42 -> 0.103011178 | J13: 1 | K13: 0.103011178
C14: =Объект4!C27 -> Магазин торговой площадью 1000 м2 | I14: =Объект4!J42 -> 0.1373482373 | J14: 1 | K14: 0.1373482373
J15: ИТОГО: | K15: =SUM(K11:K14) -> 3.543683431
C20: Примечание:
C21: Ввиду отсутствия разарботанного проекта градостроительной планировки и схем сетей теплоснабжения данный расчет не учитывает потери тепла при транспортировке теплоносителя и на собственные нужды объектов инженерной инфраструктуры.
C25: Приложения:
C26: Расчет расхода тепла: | G26: =C11 -> Многоквартирный 5ти этажный жилой дом на 20 квартир
C27: Расчет расхода тепла: | G27: =C12 -> Многоквартирный 9ти этажный жилой дом на 54 квартиры
C28: Расчет расхода тепла: | G28: Автосервис на 4 поста
C29: Расчет расхода тепла: | G29: Магазин торговой площадью 1000 м2
C34: Потребность объекта в тепле составляет: | H34: =K15 -> 3.543683431 | I34: Гкал/ч или | J34: =H34*1.163*1000 -> 4121.30383 | K34: кВт
C37: Расчет составил: | G37: Дворцов К.С. | K37: =TODAY() -> 2015-10-27

Sheet Объект1
C3: Предварительный расчет расхода тепловой энергии на отопление здания
C5: В связи с отменой действия "методических указаний по определению электроэнергии и воды на выработку теплоты отопительными котельными коммунальных теплоэнергетических предприятий", ГУП академия коммунального хозяйства им. К.Д. Памфилова, 2002 г., а так же МДС 41-4.2000 "Методика определения количеств тепловой энергии и теплоносителя в водяных системах коммунального теплоснабжения", и отсутствием во вновь введенном в действие Приказе Минстроя России от 17.03.2014 N 99/пр указаний по методике расчета укрупненных показателей нагрузки на отопление зданий, а так же со вступлением в силу СП 50.13330 расчет нагрузки на отопление и вентиляцию зданий произведен на основании требований СП 50.13330.2012 п. 10.1 . Расчет нагрузки производится по "Теплофикация. Теплопотребление, тепловые сети" С. Ф. Копьев стр.13 по формуле:
C18: где | D18: Q | E18: - | F18: Потребление тепла на отопление и вентиляцию здания
D19: q | E19: - | F19: Удельная характеристика расхода тепловой энергии на отопление и вентиляцию
D20: V | E20: - | F20: Строительный объем здания по наружным обмерам
D21: tв | E21: - | F21: Средняя расчетная температура внутреннего воздуха
D22: tн | E22: - | F22: Температура наиболее холодной пятидневки с обеспеченностью 0.92
C24: Расчет произведен для объекта со следующими характеристиками:
C26: Наименование объекта:
C27: Многоквартирный 5ти этажный жилой дом на 20 квартир
C29: Строительный объем здания: | G29: 5700 | H29: м³
C30: Этажность здания: | G30: 5 | H30: этажей
C32: Исходные данные:
C33: Величина | E33: Значение | G33: Ед. изм | H33: Источник данных
C34: q | E34: 0.359 | G34: Вт/(м³·°С) | H34: СП 50.13330.2012 п. 10. 1 Таблица 14
C35: V | E35: =G29 -> 5700 | G35: м³ | H35: по заданию
C36: tв | E36: 20 | G36: °С | H36: ГОСТ 30494-2011 таблица 1
C37: tн | E37: -22 | G37: °С | H37: СП 131.13330.2012 таблица 3.1
C39: Тогда: | D39: Q | E39: = | F39: =E34 -> 0.359 | G39: =E35 -> 5700 | H39: =E36 -> 20 | I39: =E37 -> -22 | J39: =(E36-E37)*E35*E34 -> 85944.6 | K39: Вт
C42: Потребность объекта в тепле составляет: | H42: =J39/1000 -> 85.9446 | I42: кВт или | J42: =H42/1.163/1000 -> 0.07389905417 | K42: Гкал/ч
C45: Расчет составил: | G45: Дворцов К.С. | K45: =TODAY() -> 2015-10-27

Sheet Объект2
C3: Предварительный расчет расхода тепловой энергии на отопление здания
C5: В связи с отменой действия "методических указаний по определению электроэнергии и воды на выработку теплоты отопительными котельными коммунальных теплоэнергетических предприятий", ГУП академия коммунального хозяйства им. К.Д. Памфилова, 2002 г., а так же МДС 41-4.2000 "Методика определения количеств тепловой энергии и теплоносителя в водяных системах коммунального теплоснабжения", и отсутствием во вновь введенном в действие Приказе Минстроя России от 17.03.2014 N 99/пр указаний по методике расчета укрупненных показателей нагрузки на отопление зданий, а так же со вступлением в силу СП 50.13330 расчет нагрузки на отопление и вентиляцию зданий произведен на основании требований СП 50.13330.2012 п. 10.1 . Расчет нагрузки производится по "Теплофикация. Теплопотребление, тепловые сети" С. Ф. Копьев стр.13 по формуле:
C18: где | D18: Q | E18: - | F18: Потребление тепла на отопление и вентиляцию здания
D19: q | E19: - | F19: Удельная характеристика расхода тепловой энергии на отопление и вентиляцию
D20: V | E20: - | F20: Строительный объем здания по наружным обмерам
D21: tв | E21: - | F21: Средняя расчетная температура внутреннего воздуха
D22: tн | E22: - | F22: Температура наиболее холодной пятидневки с обеспеченностью 0.92
C24: Расчет произведен для объекта со следующими характеристиками:
C26: Наименование объекта:
C27: Многоквартирный 9ти этажный жилой дом на 54 квартиры
C29: Строительный объем здания: | G29: 12555 | H29: м³
C30: Этажность здания: | G30: 9 | H30: этажей
C32: Исходные данные:
C33: Величина | E33: Значение | G33: Ед. изм | H33: Источник данных
C34: q | E34: 0.319 | G34: Вт/(м³·°С) | H34: СП 50.13330.2012 п. 10. 1 Таблица 14
C35: V | E35: =G29 -> 12555 | G35: м³ | H35: по заданию
C36: tв | E36: 20 | G36: °С | H36: ГОСТ 30494-2011 таблица 1
C37: tн | E37: -22 | G37: °С | H37: СП 131.13330.2012 таблица 3.1
C39: Тогда: | D39: Q | E39: = | F39: =E34 -> 0.319 | G39: =E35 -> 12555 | H39: =E36 -> 20 | I39: =E37 -> -22 | J39: =(E36-E37)*E35*E34 -> 168211.89 | K39: Вт
C42: Потребность объекта в тепле составляет: | H42: =J39/1000 -> 168.21189 | I42: кВт или | J42: =H42/1.163/1000 -> 0.1446361909 | K42: Гкал/ч
C45: Расчет составил: | G45: Дворцов К.С. | K45: =TODAY() -> 2015-10-27

Sheet Объект3
C3: Предварительный расчет расхода тепловой энергии на отопление здания
C5: В связи с отменой действия "методических указаний по определению электроэнергии и воды на выработку теплоты отопительными котельными коммунальных теплоэнергетических предприятий", ГУП академия коммунального хозяйства им. К.Д. Памфилова, 2002 г., а так же МДС 41-4.2000 "Методика определения количеств тепловой энергии и теплоносителя в водяных системах коммунального теплоснабжения", и отсутствием во вновь введенном в действие Приказе Минстроя России от 17.03.2014 N 99/пр указаний по методике расчета укрупненных показателей нагрузки на отопление зданий, а так же со вступлением в силу СП 50.13330 расчет нагрузки на отопление и вентиляцию зданий произведен на основании требований СП 50.13330.2012 п. 10.1 . Расчет нагрузки производится по "Теплофикация. Теплопотребление, тепловые сети" С. Ф. Копьев стр.13 по формуле:
C18: где | D18: Q | E18: - | F18: Потребление тепла на отопление и вентиляцию здания
D19: q | E19: - | F19: Удельная характеристика расхода тепловой энергии на отопление и вентиляцию
D20: V | E20: - | F20: Строительный объем здания по наружным обмерам
D21: tв | E21: - | F21: Средняя расчетная температура внутреннего воздуха
D22: tн | E22: - | F22: Температура наиболее холодной пятидневки с обеспеченностью 0.92
C24: Расчет произведен для объекта со следующими характеристиками:
C26: Наименование объекта:
C27: Автосервис на 4 поста
C29: Строительный объем здания: | G29: 6000 | H29: м³
C30: Этажность здания: | G30: 1 | H30: этажей
C32: Исходные данные:
C33: Величина | E33: Значение | G33: Ед. изм | H33: Источник данных
C34: q | E34: 0.487 | G34: Вт/(м³·°С) | H34: СП 50.13330.2012 п. 10. 1 Таблица 14
C35: V | E35: =G29 -> 6000 | G35: м³ | H35: по заданию
C36: tв | E36: 19 | G36: °С | H36: ГОСТ 30494-2011 таблица 1
C37: tн | E37: -22 | G37: °С | H37: СП 131.13330.2012 таблица 3.1
C39: Тогда: | D39: Q | E39: = | F39: =E34 -> 0.487 | G39: =E35 -> 6000 | H39: =E36 -> 19 | I39: =E37 -> -22 | J39: =(E36-E37)*E35*E34 -> 119802 | K39: Вт
C42: Потребность объекта в тепле составляет: | H42: =J39/1000 -> 119.802 | I42: кВт или | J42: =H42/1.163/1000 -> 0.103011178 | K42: Гкал/ч
C45: Расчет составил: | G45: Дворцов К.С. | K45: =TODAY() -> 2015-10-27

Sheet Объект4
C3: Предварительный расчет расхода тепловой энергии на отопление здания
C5: В связи с отменой действия "методических указаний по определению электроэнергии и воды на выработку теплоты отопительными котельными коммунальных теплоэнергетических предприятий", ГУП академия коммунального хозяйства им. К.Д. Памфилова, 2002 г., а так же МДС 41-4.2000 "Методика определения количеств тепловой энергии и теплоносителя в водяных системах коммунального теплоснабжения", и отсутствием во вновь введенном в действие Приказе Минстроя России от 17.03.2014 N 99/пр указаний по методике расчета укрупненных показателей нагрузки на отопление зданий, а так же со вступлением в силу СП 50.13330 расчет нагрузки на отопление и вентиляцию зданий произведен на основании требований СП 50.13330.2012 п. 10.1 . Расчет нагрузки производится по "Теплофикация. Теплопотребление, тепловые сети" С. Ф. Копьев стр.13 по формуле:
C18: где | D18: Q | E18: - | F18: Потребление тепла на отопление и вентиляцию здания
D19: q | E19: - | F19: Удельная характеристика расхода тепловой энергии на отопление и вентиляцию
D20: V | E20: - | F20: Строительный объем здания по наружным обмерам
D21: tв | E21: - | F21: Средняя расчетная температура внутреннего воздуха
D22: tн | E22: - | F22: Температура наиболее холодной пятидневки с обеспеченностью 0.92
C24: Расчет произведен для объекта со следующими характеристиками:
C26: Наименование объекта:
C27: Магазин торговой площадью 1000 м2
C29: Строительный объем здания: | G29: 8000 | H29: м³
C30: Этажность здания: | G30: 1 | H30: этажей
C32: Исходные данные:
C33: Величина | E33: Значение | G33: Ед. изм | H33: Источник данных
C34: q | E34: 0.487 | G34: Вт/(м³·°С) | H34: СП 50.13330.2012 п. 10. 1 Таблица 14
C35: V | E35: =G29 -> 8000 | G35: м³ | H35: по заданию
C36: tв | E36: 19 | G36: °С | H36: ГОСТ 30494-2011 таблица 1
C37: tн | E37: -22 | G37: °С | H37: СП 131.13330.2012 таблица 3.1
C39: Тогда: | D39: Q | E39: = | F39: =E34 -> 0.487 | G39: =E35 -> 8000 | H39: =E36 -> 19 | I39: =E37 -> -22 | J39: =(E36-E37)*E35*E34 -> 159736 | K39: Вт
C42: Потребность объекта в тепле составляет: | H42: =J39/1000 -> 159.736 | I42: кВт или | J42: =H42/1.163/1000 -> 0.1373482373 | K42: Гкал/ч
C45: Расчет составил: | G45: Дворцов К.С. | K45: =TODAY() -> 2015-10-27
